[Event "GER-ch Youth-U14 2022"]
[Site "Willingen"]
[Date "2022.06.09"]
[Round "7.8"]
[White "Haubold, Sebastian Marcel"]
[Black "Chinguun Sundui"]
[Result "1-0"]
[ECO "B27"]
[WhiteElo "1869"]
[BlackElo "1731"]
[Annotator "NA RC COMBH"]
[PlyCount "37"]
[EventDate "2022.06.05"]
[EventType "swiss"]
[EventRounds "9"]
[EventCountry "GER"]
[SourceTitle "playchess.com"]
[Source "ChessBase"]
[SourceQuality "1"]
[TimeControl "40/4500+30:900+30"]

1. e4 {[%emt 0:00:00]} c5 {[%emt 0:00:00]} 2. Nf3 {[%emt 0:00:00]} g6 {[%emt 0:00:00]} 3. d4 {[%emt 0:00:00]} cxd4 {[%emt 0:00:00]} 4. Nxd4 {[%emt 0:00:00]} Bg7 {[%emt 0:00:00]} 5. Nc3 {[%emt 0:00:00]} Nc6 {[%emt 0:00:00]} 6. Be3 {[%emt 0:00:00]} d6 {[%emt 0:00:00]} 7. Bc4 {[%emt 0:00:00]} Nf6 {[%emt 0:00:00]} 8. f3 {[%emt 0:00:00]} h5 {[%emt 0:00:00]} 9. Nxc6 {[%emt 0:01:51]} bxc6 {[%emt 0:00:00]} 10. e5 {[%emt 0:00:08]} Ng8 {[%emt 0:00:00]} 11. exd6 {[%emt 0:22:58]} exd6 {[%emt 0:00:00]} 12. Qd2 {[%emt 0:02:29]} Qh4+ {[%emt 0:00:00]} 13. Bf2 {[%emt 0:06:49]} Qxc4 {[%emt 0:00:08]} 14. Ne4 {[%emt 0:00:17]} Be5 {[%emt 0:02:43]} 15. O-O-O {[%emt 0:08:04]} Kf8 {[%emt 0:09:00]} 16. Nxd6 {[%emt 0:04:22]} Qxa2 {[%emt 0:03:35]} 17. Qb4 {[%emt 0:00:53]} a5 {[%emt 0:01:19]} 18. Nf5+ {[%emt 0:00:54]} Ke8 {[%emt 0:01:00]} 19. Qf8+ {[%emt 0:00:14]} 1-0

[Event "GER-ch Youth-U14 2022"]
[Site "Willingen"]
[Date "2022.06.09"]
[Round "7.9"]
[White "Udelnov, Valentin"]
[Black "Wunderlich, Elias"]
[Result "1-0"]
[ECO "C07"]
[WhiteElo "1901"]
[BlackElo "1619"]
[Annotator "TA"]
[PlyCount "105"]
[EventDate "2022.06.05"]
[EventType "swiss"]
[EventRounds "9"]
[EventCountry "GER"]
[SourceTitle "playchess.com"]
[Source "ChessBase"]
[SourceQuality "1"]
[TimeControl "40/4500+30:900+30"]

{[%evp 19,104,26,25,21,21,-22,-22,-27,-18,-18,-18,-29,-38,-62,-63,-59,-63,-91,-90,-103,-73,-78,-51,-64,-51,-71,-67,-73,-73,-70,-44,-52,-51,-58,-57,-55,-54,-242,-186,-187,-110,-765,-792,-788,-779,-747,-708,-713,-519,-500,-221,-346,-343,-1130,431,426,645,615,552,445,369,360,437,437,437,414,566,534,534,517,483,476,29957,29958,29966,29968,29974,29975,29992,29993,29993,29994,29994,29995,29998,29999,29999]} 1. e4 {[%emt 0:00:00]} e6 {[%emt 0:00:00]} 2. d4 {[%emt 0:00:00]} d5 {[%emt 0:00:00]} 3. Nd2 {[%emt 0:00:00]} c5 {[%emt 0:00:00]} 4. Ngf3 {[%emt 0:00:00]} cxd4 {[%emt 0:00:00]} 5. exd5 {[%emt 0:00:00]} Qxd5 {[%emt 0:00:00]} 6. Bc4 {[%emt 0:00:00]} Qd6 {[%emt 0:00:00]} 7. O-O {[%emt 0:00:00]} Nf6 {[%emt 0:00:00]} 8. Nb3 {[%emt 0:00:00]} Nc6 {[%emt 0:00:00]} 9. Nbxd4 {[%emt 0:00:00]} Nxd4 {[%emt 0:00:00]} 10. Nxd4 {[%emt 0:00:00]} Be7 {[%emt 0:00:00]} 11. Re1 {[%emt 0:00:00] C07: French Tarrasch: 3...c5, 4 Ngf3 and 4 exd5 Qxd5.} O-O {[%emt 0:00:00] [#]} 12. Bf1 $146 {[%emt 0:00:00]} ({Predecessor:} 12. c3 Qc7 13. Bb3 Bd7 14. Qf3 Rfd8 15. Bf4 Bd6 16. Bxd6 Qxd6 17. Qxb7 Ng4 18. Nf3 Bc6 {1-0 (53) Guseinov,G (2593)-Saric,A (2577) Tallinn 2019}) 12... Rd8 {[%emt 0:00:00]} 13. Be3 {[%emt 0:02:08] The position is equal.} Nd5 {[%emt 0:00:00]} 14. Bd2 {[%emt 0:06:40]} Bf6 {[%emt 0:00:00]} 15. Nb5 {[%emt 0:05:31]} Qc5 {[%emt 0:00:00]} 16. c4 {[%emt 0:03:55]} a6 $1 {[%emt 0:18:03]} 17. cxd5 {[%emt 0:25:37]} axb5 {[%emt 0:00:13]} 18. dxe6 {[%emt 0:05:53]} Bxe6 {[%emt 0:00:23]} 19. Rc1 {[%emt 0:09:48]} Qa7 {[%emt 0:06:33]} 20. Qc2 {[%emt 0:03:40]} Qxa2 {[%emt 0:06:34]} 21. Bc3 {[%emt 0:05:30]} Bg5 {[%emt 0:12:50]} 22. Rcd1 {[%emt 0:01:27]} Rxd1 {[%emt 0:07:32]} 23. Qxd1 {[%emt 0:00:06]} b4 $1 $36 {[%emt 0:00:22][%mdl 2048] Black has strong initiative.} 24. Be5 {[%emt 0:04:45]} Rd8 {[%emt 0:02:36] Prevents Qd4.} 25. Qf3 {[%emt 0:01:09]} Qd5 {[%emt 0:14:23]} 26. Qg3 {[%emt 0:02:01]} Bh6 {[%emt 0:02:23]} 27. Qh4 {[%emt 0:03:49]} Rc8 {[%emt 0:07:15]} 28. g4 $2 {[%emt 0:02:15]} ({White should play} 28. h3 $15) 28... Qd2 {[%emt 0:00:45]} 29. Re2 {[%emt 0:01:24]} Qc1 {[%emt 0:00:25]} (29... Qd1 $19 {Hoping for ...Bc4.} 30. f4 f6) 30. f3 $2 {[%emt 0:00:56][%mdl 8192]} (30. Qe7 $17) 30... Be3+ $19 {[%emt 0:04:23]} 31. Kg2 {[%emt 0:00:05]} Bc4 {[%emt 0:00:29]} 32. Re1 {[%emt 0:00:29]} Qd2+ {[%emt 0:01:08]} 33. Kh3 {[%emt 0:02:22]} Bf2 {[%emt 0:01:06]} 34. Qe7 {[%emt 0:00:24][%cal Of1c4]} Bxf1+ {[%emt 0:02:08]} (34... Bxe1 $2 {loses.} 35. Bxc4 Qh6+ 36. Kg2 $17) ({Inferior is} 34... Qh6+ 35. Kg2 Bxe1 36. Bxc4 $19) 35. Rxf1 {[%emt 0:00:06]} Qe2 $1 {[%emt 0:00:21][%csl LRf1,LRf3][%cal Re2f1] [#]} 36. Ra1 {[%emt 0:00:56]} (36. Rc1 Rf8 37. Bd6 Qxf3+ 38. Bg3) 36... Bd4 $4 {[%emt 0:01:07][%mdl 8192]} (36... h5 $19 37. Qxb4 Qxf3+ 38. Bg3 Bxg3) 37. Qxb7 $18 {[%emt 0:00:44][%cal Rb7c8]} Re8 {[%emt 0:00:58]} (37... Rd8 $142 38. Bxd4 h5) 38. Bxd4 {[%emt 0:00:41]} h5 {[%emt 0:00:52]} 39. Ra8 {[%emt 0:01:35]} hxg4+ {[%emt 0:00:38]} 40. fxg4 {[%emt 0:00:28] aiming for Rxe8+.} Qf1+ {[%emt 0:01:21] [#]} 41. Kg3 $1 {[%emt 0:00:00]} Qd3+ {[%emt 0:00:00]} 42. Kg2 {[%emt 0:00:00]} ({Not} 42. Kh4 g5+ 43. Kxg5 Qd2+ 44. Kh5 Qxh2+ 45. Kg5 Qd2+ 46. Kh5 Qh2+ 47. Kg5 Qd2+ 48. Kh5 Qh2+ $11) 42... Rxa8 {[%emt 0:01:52]} 43. Qxa8+ {[%emt 0:00:00]} Kh7 {[%emt 0:00:10]} 44. Bf2 {[%emt 0:00:00]} Qc2 {[%emt 0:02:30]} 45. Qf3 {[%emt 0:00:00]} Qxb2 {[%emt 0:01:09]} (45... Kg8 $18 46. b3 f6 47. Qd5+ Kh8) 46. Qxf7 {[%emt 0:00:00] White mates.} b3 {[%emt 0:03:58]} 47. Qf5+ {[%emt 0:07:31]} Kg8 {[%emt 0:02:14]} 48. g5 {[%emt 0:01:29][%cal Bg4g5,Bg5g6][%mdl 32]} Qa2 {[%emt 0:04:02]} 49. g6 {[%emt 0:05:10][%cal Rf5c8]} Qa8+ {[%emt 0:00:05]} 50. Kh3 {[%emt 0:00:47]} b2 {[%emt 0:02:34]} 51. Bd4 {[%emt 0:00:46]} b1=Q {[%emt 0:01:07]} 52. Qf7+ {[%emt 0:00:08]} Kh8 {[%emt 0:00:11]} 53. Bxg7# {What a bad dream for Black.  Weighted Error Value: White=0.40/Black=0.62} 1-0

[Event "GER-ch Youth-U14 2022"]
[Site "Willingen"]
[Date "2022.06.09"]
[Round "7.10"]
[White "Sommer, Justus"]
[Black "Torosyan, Bagrat"]
[Result "1/2-1/2"]
[ECO "B51"]
[WhiteElo "1868"]
[BlackElo "1683"]
[Annotator "NA RC COMBH"]
[PlyCount "98"]
[EventDate "2022.06.05"]
[EventType "swiss"]
[EventRounds "9"]
[EventCountry "GER"]
[SourceTitle "playchess.com"]
[Source "ChessBase"]
[SourceQuality "1"]
[TimeControl "40/4500+30:900+30"]

1. e4 {[%emt 0:00:00]} c5 {[%emt 0:00:00]} 2. Nf3 {[%emt 0:00:00]} d6 {[%emt 0:00:00]} 3. Bb5+ {[%emt 0:00:00]} Nc6 {[%emt 0:00:00]} 4. Bxc6+ {[%emt 0:00:00]} bxc6 {[%emt 0:00:00]} 5. d3 {[%emt 0:00:00]} Nf6 {[%emt 0:00:00]} 6. O-O {[%emt 0:00:00]} g6 {[%emt 0:00:00]} 7. e5 {[%emt 0:00:00]} Nd5 {[%emt 0:00:00]} 8. exd6 {[%emt 0:00:00]} Qxd6 {[%emt 0:00:00]} 9. Nbd2 {[%emt 0:00:00]} Bf5 {[%emt 0:01:51]} 10. Nc4 {[%emt 0:02:03]} Qc7 {[%emt 0:02:04]} 11. Nfd2 {[%emt 0:05:00]} h5 {[%emt 0:11:16]} 12. Nb3 {[%emt 0:07:42]} e6 {[%emt 0:03:16]} 13. Bg5 {[%emt 0:06:37]} f6 {[%emt 0:02:41]} 14. Be3 {[%emt 0:03:53]} Nxe3 {[%emt 0:01:04]} 15. fxe3 {[%emt 0:00:12]} Be7 {[%emt 0:05:02]} 16. e4 {[%emt 0:02:11]} Bg4 {[%emt 0:01:24]} 17. Qd2 {[%emt 0:00:51]} e5 {[%emt 0:08:50]} 18. Qf2 {[%emt 0:02:03]} Be6 {[%emt 0:02:28]} 19. Nxc5 {[%emt 0:02:30]} Bxc4 {[%emt 0:00:23]} 20. dxc4 {[%emt 0:00:07]} Qb6 {[%emt 0:00:11]} 21. Nd3 {[%emt 0:01:29]} Qxf2+ {[%emt 0:00:24]} 22. Rxf2 {[%emt 0:01:39]} O-O-O {[%emt 0:02:13]} 23. Re2 {[%emt 0:06:57]} Rd4 {[%emt 0:01:54]} 24. c5 {[%emt 0:02:21]} Rc4 {[%emt 0:07:32]} 25. b4 {[%emt 0:02:20]} Rd8 {[%emt 0:01:37]} 26. h3 {[%emt 0:05:47]} Rdd4 {[%emt 0:01:18]} 27. Rae1 {[%emt 0:01:36]} h4 {[%emt 0:08:41]} 28. Kf2 {[%emt 0:03:29]} Rc3 {[%emt 0:03:07]} 29. Rb1 {[%emt 0:08:06]} Rcc4 {[%emt 0:03:21]} 30. Kf3 {[%emt 0:00:47]} f5 {[%emt 0:07:01]} 31. Rbe1 {[%emt 0:01:16]} Bf6 {[%emt 0:00:37]} 32. Kf2 {[%emt 0:09:20]} Rxe4 {[%emt 0:04:14]} 33. a3 {[%emt 0:05:00]} Rxe2+ {[%emt 0:04:17]} 34. Rxe2 {[%emt 0:00:08]} e4 {[%emt 0:00:09]} 35. Nc1 {[%emt 0:03:16]} e3+ {[%emt 0:02:10]} 36. Kf3 {[%emt 0:00:17]} Bg5 {[%emt 0:00:43]} 37. Nd3 {[%emt 0:00:17]} Re4 {[%emt 0:00:22]} 38. a4 {[%emt 0:01:53]} a6 {[%emt 0:00:48]} 39. Re1 {[%emt 0:01:40]} Bh6 {[%emt 0:01:51]} 40. Rb1 {[%emt 0:03:02]} g5 {[%emt 0:01:17]} 41. Ke2 {[%emt 0:00:00]} g4 {[%emt 0:00:00]} 42. b5 {[%emt 0:00:00]} cxb5 {[%emt 0:00:00]} 43. axb5 {[%emt 0:00:00]} axb5 {[%emt 0:00:00]} 44. Rxb5 {[%emt 0:00:00]} Rc4 {[%emt 0:00:00]} 45. Ne1 {[%emt 0:00:00]} Rd4 {[%emt 0:00:00]} 46. Nd3 {[%emt 0:00:00]} Rd5 {[%emt 0:00:00]} 47. Rb6 {[%emt 0:00:00]} gxh3 {[%emt 0:00:12]} 48. gxh3 {[%emt 0:00:00]} Bg5 {[%emt 0:01:30]} 49. c4 {[%emt 0:02:48]} Rd4 {[%emt 0:01:18]} 1/2-1/2

[Event "GER-ch Youth-U14 2022"]
[Site "Willingen"]
[Date "2022.06.09"]
[Round "7.11"]
[White "Uhlmann, Tim"]
[Black "Fruth, David"]
[Result "1/2-1/2"]
[ECO "B27"]
[WhiteElo "1776"]
[BlackElo "1648"]
[Annotator "NA RC COMBH"]
[PlyCount "94"]
[EventDate "2022.06.05"]
[EventType "swiss"]
[EventRounds "9"]
[EventCountry "GER"]
[SourceTitle "playchess.com"]
[Source "ChessBase"]
[SourceQuality "1"]
[TimeControl "40/4500+30:900+30"]

1. e4 {[%emt 0:00:00]} c5 {[%emt 0:00:00]} 2. Nf3 {[%emt 0:00:00]} g6 {[%emt 0:00:00]} 3. c4 {[%emt 0:00:00]} Nc6 {[%emt 0:00:00]} 4. d4 {[%emt 0:00:00]} Bg7 {[%emt 0:00:00]} 5. d5 {[%emt 0:00:00]} Nd4 {[%emt 0:00:00]} 6. Nc3 {[%emt 0:00:00]} d6 {[%emt 0:00:00]} 7. Be2 {[%emt 0:06:17]} Nxf3+ {[%emt 0:00:00]} 8. Bxf3 {[%emt 0:00:08]} Nf6 {[%emt 0:00:00]} 9. O-O {[%emt 0:00:35]} Nd7 {[%emt 0:00:00]} 10. Be2 {[%emt 0:01:11]} O-O {[%emt 0:00:00]} 11. Be3 {[%emt 0:00:59]} Nb8 {[%emt 0:07:07]} 12. f4 {[%emt 0:02:33]} Na6 {[%emt 0:06:27]} 13. f5 {[%emt 0:08:57]} Nc7 {[%emt 0:09:54]} 14. Qd2 {[%emt 0:11:43]} Bd7 {[%emt 0:11:54]} 15. Bh6 {[%emt 0:19:50]} a6 {[%emt 0:02:38]} 16. a4 {[%emt 0:02:46]} Rb8 {[%emt 0:01:41]} 17. g4 {[%emt 0:03:55]} b5 {[%emt 0:05:37]} 18. Bxg7 {[%emt 0:00:16]} Kxg7 {[%emt 0:00:03]} 19. g5 {[%emt 0:05:52]} f6 {[%emt 0:02:55]} 20. fxg6 {[%emt 0:03:51]} hxg6 {[%emt 0:01:20]} 21. gxf6+ {[%emt 0:00:51]} Rxf6 {[%emt 0:00:49]} 22. Rxf6 {[%emt 0:00:10]} exf6 {[%emt 0:00:11]} 23. axb5 {[%emt 0:00:17]} axb5 {[%emt 0:00:02]} 24. cxb5 {[%emt 0:00:08]} Rb7 {[%emt 0:12:47]} 25. Bc4 {[%emt 0:04:15]} g5 {[%emt 0:03:07]} 26. Qd3 {[%emt 0:01:47]} Qe8 {[%emt 0:03:04]} 27. Ra5 {[%emt 0:03:37]} Qd8 {[%emt 0:09:41]} 28. Ra3 {[%emt 0:01:03]} Na8 {[%emt 0:03:08]} 29. Ra6 {[%emt 0:03:28]} Nb6 {[%emt 0:00:22]} 30. b3 {[%emt 0:00:44]} Qe7 {[%emt 0:01:03]} 31. Na4 {[%emt 0:02:12]} Nxc4 {[%emt 0:01:02]} 32. bxc4 {[%emt 0:00:09]} Qe5 {[%emt 0:00:25]} 33. Nc3 {[%emt 0:01:25]} Qf4 {[%emt 0:02:33]} 34. Ne2 {[%emt 0:01:15]} Qe5 {[%emt 0:01:05]} 35. Ng3 {[%emt 0:01:21]} Qb2 {[%emt 0:00:35]} 36. Rxd6 {[%emt 0:01:02]} Ra7 {[%emt 0:00:23]} 37. Ra6 {[%emt 0:00:26]} Rxa6 {[%emt 0:02:02]} 38. bxa6 {[%emt 0:00:06]} Qa1+ {[%emt 0:00:07]} 39. Kg2 {[%emt 0:00:29]} Qxa6 {[%emt 0:00:13]} 40. Nf5+ {[%emt 0:00:38]} Kg6 {[%emt 0:01:24]} 41. d6 {[%emt 0:16:00]} Qa2+ {[%emt 0:15:46]} 42. Kg3 {[%emt 0:00:24]} Qa1 {[%emt 0:00:35]} 43. Ne3 {[%emt 0:00:00]} Kg7 {[%emt 0:00:00]} 44. Nf5+ {[%emt 0:00:00]} Kg6 {[%emt 0:00:00]} 45. Kf2 {[%emt 0:00:00]} Qb2+ {[%emt 0:00:00]} 46. Kg3 {[%emt 0:00:00]} Qa1 {[%emt 0:00:00]} 47. Kg2 {[%emt 0:00:00]} Qb2+ {[%emt 0:00:00]} 1/2-1/2

[Event "GER-ch Youth-U14 2022"]
[Site "Willingen"]
[Date "2022.06.09"]
[Round "7.12"]
[White "Huber, Benedikt"]
[Black "Schwan, Aaron"]
[Result "1-0"]
[ECO "B41"]
[WhiteElo "2288"]
[BlackElo "1671"]
[Annotator "TA"]
[PlyCount "117"]
[EventDate "2022.06.05"]
[EventType "swiss"]
[EventRounds "9"]
[EventCountry "GER"]
[SourceTitle "playchess.com"]
[Source "ChessBase"]
[SourceQuality "1"]
[TimeControl "40/4500+30:900+30"]

{[%evp 20,117,52,57,54,44,70,52,55,34,65,12,54,41,57,42,68,27,16,0,86,75,239,49,61,24,56,36,43,53,176,-42,-39,-56,-21,-21,261,-70,-74,-77,-78,-85,-91,-87,-90,-83,-74,-156,-114,-248,-66,-41,164,168,326,347,305,248,1062,410,1349,460,444,447,440,415,29972,29973,29972,29974,29974,29975,29972,29972,29970,29971,29977,29975,29977,29978,29978,29979,29979,29980,29980,29981,29981,29982,29982,29982,29983,29983,29983,29984,29984,29985,29985,29986,29988,29987]} 1. e4 {[%emt 0:00:00]} c5 {[%emt 0:00:00]} 2. Nf3 {[%emt 0:00:00]} e6 {[%emt 0:00:00]} 3. d4 {[%emt 0:00:00]} cxd4 {[%emt 0:00:00]} 4. Nxd4 {[%emt 0:00:00]} a6 {[%emt 0:00:00]} 5. c4 {[%emt 0:00:00]} Qc7 {[%emt 0:00:00]} 6. Nc3 {[%emt 0:00:00]} Nf6 {[%emt 0:00:00]} 7. a3 {[%emt 0:00:00]} b6 {[%emt 0:00:00]} 8. Be3 {[%emt 0:00:00]} Bb7 {[%emt 0:00:00]} 9. f3 {[%emt 0:00:00]} d6 {[%emt 0:00:00]} 10. Be2 {[%emt 0:00:00]} Be7 {[%emt 0:00:00]} 11. O-O {[%emt 0:00:00]} Nbd7 {[%emt 0:00:00] B41: Sicilian: Kan Variation: 5 c4.} 12. Qd2 {[%emt 0:00:00]} O-O {[%emt 0:00:00]} 13. Rfc1 {[%emt 0:00:00]} Rac8 {[%emt 0:00:08] White is slightly better.} 14. a4 {[%emt 0:00:00][%cal Oa4a5]} Bd8 {[%emt 0:03:58]} (14... Qb8) 15. Nb3 {[%emt 0:05:34] White is more active.} (15. a5 $14) 15... Qb8 {[%emt 0:12:12]} 16. a5 {[%emt 0:12:06]} Nc5 {[%emt 0:03:18]} 17. Nxc5 {[%emt 0:10:47]} bxc5 {[%emt 0:03:25] [#]} 18. Rcb1 $146 {[%emt 0:04:56]} ({Predecessor:} 18. Bf4 Bc7 19. Rd1 Ne8 20. g3 Bc6 21. Bf1 Qb7 22. Bh3 Kh8 23. Qe2 Rb8 24. Rd2 Qb4 25. e5 dxe5 26. Bxe5 Bxe5 27. Qxe5 Nf6 28. Ra4 Bxa4 29. Nxa4 Qxd2 {0-1 (29) Petraki,E (1884)-Salahidou,R (1962) Chania 2018}) 18... Bc6 {[%emt 0:03:39]} 19. e5 {[%emt 0:05:39]} Nd7 {[%emt 0:14:29]} (19... dxe5 $11 20. Bxc5 e4) 20. exd6 {[%emt 0:10:56][%cal Ob2b4] Hoping for b4!} (20. Qxd6 Qb7 $14) 20... f5 $2 {[%emt 0:04:38]} (20... Bf6 $16 {was worth a try.}) 21. f4 $2 {[%emt 0:06:14]} (21. b4 $1 $18) 21... Bf6 $14 {[%emt 0:04:00]} 22. Na4 {[%emt 0:08:58]} Rfd8 {[%emt 0:07:14]} 23. Nxc5 {[%emt 0:08:43]} Nxc5 {[%emt 0:00:54]} 24. Bxc5 {[%emt 0:00:03]} Be4 {[%emt 0:00:25] [#]} (24... Bxg2 $1 $14 25. Kxg2 Rxc5) 25. Bb6 $2 {[%emt 0:03:08]} (25. Ba3 $1 $18) 25... Rxd6 $15 {[%emt 0:00:58]} 26. Qe3 {[%emt 0:01:45] Rd1 is the strong threat.} Bxb1 {[%emt 0:00:59]} 27. Rxb1 {[%emt 0:00:05] [#]} Qxb6 $4 {[%emt 0:03:05][%mdl 8192]} 28. Qxb6 $2 {[%emt 0:01:47]} ({White has to play} 28. axb6 $18 Bd4 29. Qxd4 Rxd4 30. b4) 28... Bd4+ {[%emt 0:00:01]} ({Don't take} 28... Rxb6 29. axb6 Bd4+ 30. Kf1 $14) 29. Qxd4 {[%emt 0:00:41]} Rxd4 $17 {[%emt 0:00:01][%mdl 4096] Endgame KRR-KRB} 30. g3 {[%emt 0:00:39]} Rd2 {[%emt 0:01:32]} 31. Kf1 {[%emt 0:01:17]} Rb8 {[%emt 0:02:50]} 32. b4 {[%emt 0:00:38]} Ra2 {[%emt 0:00:34]} 33. Bd3 {[%emt 0:05:32]} (33. c5 $142 Rxa5 34. Rc1) 33... Rxh2 {[%emt 0:00:26] Strongly threatening ...Rh1+.} 34. Kg1 {[%emt 0:01:12] Inhibits Rh1+.} (34. Ke1 $17 {is the only way for White.}) 34... Ra2 $2 {[%emt 0:00:58]} ({Black should play} 34... Rd2 $19 35. Bf1 Rc2) 35. c5 $15 {[%emt 0:00:39] Threatens to win with c6.} Kf7 $2 {[%emt 0:00:30] [#]} (35... Ra3 $1 $15 {stays ahead.} 36. Bc4 (36. Bxa6 $2 Rxa5 37. Bd3 Ra3 $19) 36... Rc3 37. Bxa6 Rxc5) 36. c6 $1 $18 {White stays focused until the end.} Rd2 $2 {[%emt 0:10:24]} (36... Ke7) 37. Bxa6 {[%emt 0:01:01] aiming for c7.} Rc2 {[%emt 0:00:03]} 38. Bb7 {[%emt 0:00:18]} Ke7 $2 {[%emt 0:09:56]} (38... Rd8 39. a6 Rd3) 39. a6 {[%emt 0:00:09]} (39. b5 $142) 39... Rf8 {[%emt 0:01:32]} (39... Rd8 $142 40. a7 Ra2) 40. a7 {[%emt 0:00:12]} (40. b5 $142 Rc3 41. b6) 40... Ra2 {[%emt 0:00:04]} 41. c7 {[%emt 0:16:55]} Kd7 {[%emt 0:16:01]} 42. Rc1 {[%emt 0:00:39]} Rc8 {[%emt 0:01:30]} (42... Rxa7 $18 43. c8=Q+ Rxc8 44. Bxc8+ Ke7) 43. Bxc8+ {[%emt 0:00:56] White mates.} Kxc8 {[%emt 0:00:03] KR-KR} 44. b5 {[%emt 0:00:12][%cal Bb4b5,Bb5b6][%mdl 32]} Rxa7 {[%emt 0:00:21]} 45. b6 Ra8 {[%emt 0:00:14]} 46. Rd1 {[%emt 0:00:00]} Kb7 {[%emt 0:00:00]} 47. Rd8 {[%emt 0:00:00]} Ra1+ {[%emt 0:00:00]} 48. Kg2 {[%emt 0:00:00]} Rc1 {[%emt 0:00:00]} 49. Rb8+ {[%emt 0:00:00]} Ka6 {[%emt 0:00:00]} 50. c8=Q+ {[%emt 0:00:00]} Rxc8 {[%emt 0:00:00]} 51. Rxc8 {[%emt 0:00:00]} Kxb6 {[%emt 0:00:00] KR-KP} 52. Re8 {[%emt 0:00:00]} Kc7 {[%emt 0:00:00]} 53. Rxe6 {[%emt 0:00:00] KR-K3P} Kd7 {[%emt 0:00:00]} 54. Re5 {[%emt 0:00:00]} g6 {[%emt 0:00:00]} 55. Ra5 {[%emt 0:00:00]} Ke6 {[%emt 0:00:00]} 56. Ra7 {[%emt 0:00:00]} h6 {[%emt 0:00:00]} 57. Ra6+ {[%emt 0:00:00]} Kf7 {[%emt 0:00:00]} 58. Kf3 {[%emt 0:00:00]} g5 {[%emt 0:00:00]} 59. g4 {[%emt 0:00:00] Weighted Error Value: White=0.54/Black=0.58} 1-0

[Event "GER-ch Youth-U14 2022"]
[Site "Willingen"]
[Date "2022.06.09"]
[Round "7.13"]
[White "Winkler, Yonathan"]
[Black "Mader, Fabian"]
[Result "0-1"]
[ECO "B33"]
[WhiteElo "1699"]
[BlackElo "1652"]
[Annotator "NA RC COMBH"]
[PlyCount "74"]
[EventDate "2022.06.05"]
[EventType "swiss"]
[EventRounds "9"]
[EventCountry "GER"]
[SourceTitle "playchess.com"]
[Source "ChessBase"]
[SourceQuality "1"]
[TimeControl "40/4500+30:900+30"]

1. e4 {[%emt 0:00:00]} c5 {[%emt 0:00:00]} 2. Nf3 {[%emt 0:00:00]} Nc6 {[%emt 0:00:00]} 3. d4 {[%emt 0:00:00]} cxd4 {[%emt 0:00:00]} 4. Nxd4 {[%emt 0:00:00]} Nf6 {[%emt 0:00:00]} 5. Nc3 {[%emt 0:00:00]} e5 {[%emt 0:00:00]} 6. Ndb5 {[%emt 0:00:00]} d6 {[%emt 0:00:00]} 7. Bg5 {[%emt 0:00:00]} a6 {[%emt 0:00:00]} 8. Na3 {[%emt 0:00:00]} b5 {[%emt 0:00:00]} 9. Nd5 {[%emt 0:00:00]} Be7 {[%emt 0:00:00]} 10. Bxf6 {[%emt 0:00:00]} Bxf6 {[%emt 0:00:00]} 11. c4 {[%emt 0:00:00]} b4 {[%emt 0:00:00]} 12. Nc2 {[%emt 0:00:00]} O-O {[%emt 0:00:00]} 13. Qf3 {[%emt 0:00:00]} Bg5 {[%emt 0:00:00]} 14. h4 {[%emt 0:00:00]} Bh6 {[%emt 0:00:00]} 15. g4 {[%emt 0:00:00]} Bf4 {[%emt 0:00:00]} 16. Nxf4 {[%emt 0:02:37]} exf4 {[%emt 0:00:00]} 17. Qxf4 {[%emt 0:01:57]} Ne5 {[%emt 0:00:00]} 18. Ne3 {[%emt 0:08:26]} Qa5 {[%emt 0:00:00]} 19. b3 {[%emt 0:03:43]} Be6 {[%emt 0:03:46]} 20. Be2 {[%emt 0:06:01]} Qb6 {[%emt 0:12:40]} 21. h5 {[%emt 0:03:45]} f6 {[%emt 0:13:27]} 22. Rd1 {[%emt 0:13:52]} a5 {[%emt 0:09:03]} 23. Nf5 {[%emt 0:07:26]} Bxf5 {[%emt 0:19:43]} 24. gxf5 {[%emt 0:00:21]} h6 {[%emt 0:03:22]} 25. Rg1 {[%emt 0:01:43]} Kh8 {[%emt 0:01:24]} 26. Qg3 {[%emt 0:02:15]} Rf7 {[%emt 0:01:01]} 27. f4 {[%emt 0:13:19]} Nd7 {[%emt 0:02:03]} 28. Qf2 {[%emt 0:02:30]} Nc5 {[%emt 0:04:17]} 29. e5 {[%emt 0:04:28]} fxe5 {[%emt 0:02:46]} 30. fxe5 {[%emt 0:00:13]} dxe5 {[%emt 0:00:15]} 31. Rd5 {[%emt 0:00:12]} Rc8 {[%emt 0:00:46]} 32. Rxe5 {[%emt 0:02:47]} Qf6 {[%emt 0:02:03]} 33. Qe3 {[%emt 0:04:07]} Nd7 {[%emt 0:01:29]} 34. Rd5 {[%emt 0:02:53]} Re7 {[%emt 0:00:49]} 35. Qd2 {[%emt 0:00:46]} Rce8 {[%emt 0:03:02]} 36. Rxa5 {[%emt 0:07:54]} Rxe2+ {[%emt 0:00:28]} 37. Qxe2 {[%emt 0:00:06]} Qa1+ {[%emt 0:00:18]} 0-1